Cogmind - Beta 13 @@@ ROGUE MODE // 2024.04.12 @ 21:39:11 Player: Bean Result: Destroyed by S-10 Pest with Light Assault Rifle Performance ------------- Evolutions (2) 1000 Regions Visited (6) 1200 Robots Destroyed (20) 100 Value Destroyed (353) 353 Prototype IDs (24) 480 Alien Tech Used (0) 0 Bonus (1000) 1000 TOTAL SCORE: 4133 Bonus ------- Entered Garrisons 200 Used RIF Installer 500 Aligned with FarCom 300 Cogmind --------- Core Integrity 0/550 Matter 270/300 Energy 100/100 System Corruption 0% Temperature Cool (0) Movement Core (50) Location -8/Garrison Parts ------- > --- POWER (2) -------- (None) > --- PROPULSION (3) --- (None) > --- UTILITY (4) ------ Signal Interpreter > --- WEAPON (2) ------- (None) > --- INVENTORY (5) ---- Small Storage Unit Superbattery (799) Experimental Sensor Array Cloak of Protection Guided Plasma Cannon Peak State ------------ > --- POWER ------------ Light Ion Engine > --- PROPULSION ------- Wheel Wheel > --- UTILITY ---------- Superbattery Experimental Sensor Array Signal Interpreter Cloak of Protection > --- WEAPON ----------- Medium Laser Heavy Assault Rifle > --- INVENTORY -------- Small Storage Unit Guided Plasma Cannon Light Assault Rifle [Rating: 35] Favorites ----------- Power Light Ion Engine Engine Light Ion Engine Propulsion Wheel Leg Aluminum Leg Wheel Wheel Utility Signal Interpreter Device Experimental Sensor Array Storage Small Storage Unit Processor Signal Interpreter Weapon Medium Laser Energy Gun Medium Laser Ballistic Gun Heavy Assault Rifle Build | -11 -10 -10 -10 -9 -8 -8 ------- Run | Yrd Mat Min Exi Min Mat Gar Slots Evolved 4 | . . . . . 4 . Power 1 | . . . . . 1 . Propulsion 1 | . . . . . 1 . Utility 2 | . . . . . 2 . Weapon . | . . . . . . . Parts Attached 27 | 7 4 6 . . 7 3 Power 3 | 2 . 1 . . . . Engine 3 | 2 . 1 . . . . Core . | . . . . . . . Reactor . | . . . . . . . Propulsion 4 | 2 . 2 . . . . Treads . | . . . . . . . Leg 2 | 2 . . . . . . Wheel 2 | . . 2 . . . . Hover . | . . . . . . . Flight . | . . . . . . . Utility 12 | 1 1 1 . . 6 3 Device 5 | . . 1 . . 2 2 Storage 4 | 1 . . . . 2 1 Processor 3 | . 1 . . . 2 . Hackware . | . . . . . . . Protection . | . . . . . . . Artifact . | . . . . . . . Weapon 8 | 2 3 2 . . 1 . Energy Gun 3 | 1 1 1 . . . . Energy Cannon . | . . . . . . . Ballistic Gun 5 | 1 2 1 . . 1 . Ballistic Cannon . | . . . . . . . Launcher . | . . . . . . . Special Weapon . | . . . . . . . Impact Weapon . | . . . . . . . Slashing Weapon . | . . . . . . . Piercing Weapon . | . . . . . . . Special Melee Weapon . | . . . . . . . Unidentified Prototypes 1 | . . 1 . . . . Parts Lost 10 | . 1 3 . . 6 . Power 2 | . . 1 . . 1 . Propulsion 4 | . . 2 . . 2 . Utility . | . . . . . . . Weapon 4 | . 1 . . . 3 . Highest Loss Streak 6 | . 1 3 . . 6 . To Critical Strikes . | . . . . . . . Average Slot Usage (%) 82 | . 96 93 100 100 69 34 Engine 10 | . 14 13 14 14 7 . Leg 10 | . 28 11 . . . . Wheel 9 | . . 10 28 28 14 . Device 8 | . . 8 14 14 7 14 Storage 7 | . 14 5 . . 6 8 Processor 13 | . 11 14 14 14 18 11 Energy Gun 11 | . 17 14 14 14 7 . Ballistic Gun 10 | . 10 14 14 14 7 . Naked Turns . | . . . . . . . Heaviest Build 21 | 13 14 14 9 9 21 13 Greatest Support 20 | 20 20 20 20 20 20 3 Greatest Overweight (x) 4 | . . 2 . . 1 4 Average Overweight (x) . | . . . . . . 3 Largest Inventory Capacity 8 | 8 8 8 5 5 5 5 Average Capacity 6 | 7 8 6 5 5 5 5 Most Carried 5 | 4 4 5 5 5 5 5 Average Carried 3 | 1 2 4 4 5 4 2 Final Capacity 8 | 8 8 5 5 5 5 5 Final Carried 5 | 2 4 5 5 5 5 5 Class Distribution -------------------- 66% | Mutant 29% | Scavenger-Mutant 4% | Scavenger-Skirmisher Dominant Class ---------------- Mutant | -10/Materials Mutant | -10/Mines Scavenger-Mutant | -10/Exiles Scavenger-Skirmisher | -9/Mines Scavenger-Mutant | -8/Materials Mutant | -8/Garrison Resources | -11 -10 -10 -10 -9 -8 -8 ----------- Run | Yrd Mat Min Exi Min Mat Gar Matter Collected 514 | 214 123 77 . 37 63 . Remotely . | . . . . . . . Salvage Created 417 | . 181 94 . 52 90 . Parts 33 | . 20 3 . 6 4 . Haulers Intercepted . | . . . . . . . Recyclers Shooed . | . . . . . . . Parts Field Recycled . | . . . . . . . Retrieved Matter . | . . . . . . . Parts Self-Destructed . | . . . . . . . Prevented . | . . . . . . . Kills | -11 -10 -10 -10 -9 -8 -8 ------- Run | Yrd Mat Min Exi Min Mat Gar Combat Hostiles Destroyed 18 | . 8 2 . 4 4 . Guns 18 | . 8 2 . 4 4 . Classes Destroyed 4 | . 3 1 . . . . Worker 1 | . . 1 . . . . Watcher 1 | . 1 . . . . . Swarmer 13 | . 6 . . 4 3 . Grunt 5 | . 2 2 . . 1 . Best Kill Streak 5 | . 5 2 . 4 4 . Combat Bots Only 5 | . 5 2 . 4 4 . Max Kills in Single Turn 2 | . 2 2 . 1 1 . Gunslinging 1 | . 1 1 . . . . Exploded . | . . . . . . . Melee . | . . . . . . . Uniques/NPCs Destroyed . | . . . . . . . Combat | -11 -10 -10 -10 -9 -8 -8 -------- Run | Yrd Mat Min Exi Min Mat Gar Hostile Shots Fired 227 | . 39 29 . 28 51 80 Missed 57 | . 10 6 . 2 12 27 Damage Taken 1895 | . 261 305 . 214 635 480 Core 742 | . 58 54 . 75 239 316 Absorbed by Shields 60 | . . . . . . 60 Core Remaining (%) 62 | 100 . . . 25 . . Volleys Fired 55 | . 19 14 . 9 13 . Largest 2 | . 2 2 . 2 2 . Hottest 90 | . 90 70 . 73 73 . Shots Fired 107 | . 36 28 . 18 25 . Gun 107 | . 36 28 . 18 25 . Cannon . | . . . . . . . Launcher . | . . . . . . . Special . | . . . . . . . Kinetic 46 | . 11 14 . 9 12 . Thermal 55 | . 19 14 . 9 13 . Explosive . | . . . . . . . Electromagnetic 6 | . 6 . . . . . Robot Hit Streak 4 | . 4 4 . 4 4 . Robot Miss Streak 5 | . 5 5 . 3 3 . Penetration Max . | . . . . . . . Secondary Targets 6 | . 3 1 . 1 1 . Max Gunslinging Chain 1 | . 1 1 . 1 1 . Shots Hit Robots 57 | . 20 16 . 9 12 . Core Hits 31 | . 12 6 . 4 9 . Critical Kills 1 | . . . . 1 . . Critical Parts Destroyed . | . . . . . . . Critical Strikes 3 | . 1 . . 1 1 . Burn 2 | . 1 . . . 1 . Destroy 1 | . . . . 1 . . Melee Attacks . | . . . . . . . Impact . | . . . . . . . Slashing . | . . . . . . . Piercing . | . . . . . . . Sneak Attacks . | . . . . . . . Combat Hostiles . | . . . . . . . Follow-up Attacks . | . . . . . . . Damage Inflicted 842 | . 253 209 . 116 264 . Guns 802 | . 253 209 . 116 224 . Cannons . | . . . . . . . Explosions . | . . . . . . . Melee . | . . . . . . . Ramming 40 | . . . . . 40 . Kinetic 330 | . 66 98 . 66 100 . Thermal 411 | . 126 111 . 50 124 . Explosive . | . . . . . . . Electromagnetic 61 | . 61 . . . . . Impact . | . . . . . . . Slashing . | . . . . . . . Piercing . | . . . . . . . Highest Corruption . | . . . . . . . Average Corruption . | . . . . . . . Corruption Purged . | . . . . . . . Corruption Blocked . | . . . . . . . Overload Shots . | . . . . . . . Overflow Damage . | . . . . . . . Projectiles . | . . . . . . . Explosions . | . . . . . . . Melee . | . . . . . . . Knockbacks . | . . . . . . . Impact . | . . . . . . . Kinetic . | . . . . . . . Secondary . | . . . . . . . Self-Inflicted Damage 18 | . . . . . 18 . Shots . | . . . . . . . Rammed 10 | . . . . . 10 . Targets Rammed 10 | . . . . . 10 . Kicked . | . . . . . . . Crushed . | . . . . . . . Highest Temperature 259 | . 250 259 . 108 116 . Average Temperature 80 | . 80 111 . 54 52 . Received Heat Transfer 645 | . 60 171 . . 342 72 Effects 1 | . . 1 . . . . Energy Bleed 1 | . . 1 . . . . Siege Activations . | . . . . . . . Robots Corrupted . | . . . . . . . Combat Hostiles . | . . . . . . . Parts Fried . | . . . . . . . Impact Corruptions . | . . . . . . . Robots Melted . | . . . . . . . Combat Hostiles . | . . . . . . . Parts Melted 2 | . 1 . . . 1 . Heat Transferred 1369 | . 444 333 . 148 444 . Parts Sabotaged . | . . . . . . . Parts Stolen . | . . . . . . . Parts Stripped . | . . . . . . . Power Chain Reactions . | . . . . . . . Alert | -11 -10 -10 -10 -9 -8 -8 ------- Run | Yrd Mat Min Exi Min Mat Gar Peak Influence 183 | . 183 65 . 90 173 127 Initial 112 | . . 30 . . 35 112 Average 56 | . 42 25 . 82 79 113 Maximum Alert Level . | . . . . . . . Low Security (%) 100 | 100 100 100 . 100 100 100 Level 1 . | . . . . . . . Level 2 . | . . . . . . . Level 3 . | . . . . . . . Level 4 . | . . . . . . . Level 5 . | . . . . . . . High Security . | . . . . . . . Max Security . | . . . . . . . Squads Dispatched 3 | . 1 . . . 2 . Investigation 1 | . 1 . . . . . Extermination . | . . . . . . . Reinforcement 2 | . . . . . 2 . Assault . | . . . . . . . Garrison . | . . . . . . . Intercept . | . . . . . . . Searches Triggered . | . . . . . . . Construction Impeded . | . . . . . . . Haulers Reinforced . | . . . . . . . Active Scanning Responses . | . . . . . . . Cargo Convoy Interrupts . | . . . . . . . Stealth | -11 -10 -10 -10 -9 -8 -8 --------- Run | Yrd Mat Min Exi Min Mat Gar Distress Signals 2 | . . . . . 2 . Communications Jammed . | . . . . . . . Distress Signals . | . . . . . . . Times Spotted 53 | . 12 4 . 7 19 11 Peak Tracking Total 12 | . 3 2 . 4 12 12 Tactical Retreats 1 | . . . . . 1 . Traps | -11 -10 -10 -10 -9 -8 -8 ------- Run | Yrd Mat Min Exi Min Mat Gar Traps Triggered 4 | . 1 . . . . 3 Indirectly . | . . . . . . . Trap Hack Attempts . | . . . . . . . Triggered . | . . . . . . . Disarmed . | . . . . . . . Reprogrammed . | . . . . . . . Reused . | . . . . . . . Traps Extracted . | . . . . . . . Installed . | . . . . . . . Triggered . | . . . . . . . Machines | -11 -10 -10 -10 -9 -8 -8 ---------- Run | Yrd Mat Min Exi Min Mat Gar Machines Disabled 1 | . 1 . . . . . Max in Single Turn 1 | . 1 . . . . . Machines Repaired . | . . . . . . . Machines Dismantled . | . . . . . . . Machines Sabotaged . | . . . . . . . Overloaded Fab Kills . | . . . . . . . Hacking | -11 -10 -10 -10 -9 -8 -8 --------- Run | Yrd Mat Min Exi Min Mat Gar Machines Accessed 12 | . 8 1 1 . 2 . Terminals 10 | . 8 1 . . 1 . Fabricators . | . . . . . . . Repair Stations . | . . . . . . . Recycling Units . | . . . . . . . Scanalyzers . | . . . . . . . Garrison Access 1 | . . . . . 1 . Total Hacks 28 | . 22 1 1 . 4 . Successful 16 | . 12 . 1 . 3 . Failed 12 | . 10 1 . . 1 . Catastrophic 3 | . 2 1 . . . . Database Lockouts . | . . . . . . . Manual 26 | . 21 1 1 . 3 . Terminals 26 | . 22 1 . . 3 . Fabricators . | . . . . . . . Repair Stations . | . . . . . . . Recycling Units . | . . . . . . . Scanalyzers . | . . . . . . . Garrison Access 1 | . . . . . 1 . Terminal Hacks 9 | . 7 . 1 . 1 . Branch Access Points 1 | . 1 . . . . . Emergency Access Points 1 | . 1 . . . . . Terminal Index 2 | . 1 . . . 1 . Alert Level 1 | . 1 . . . . . Unreport Threat 1 | . 1 . . . . . Dispatch Records 1 | . 1 . . . . . Patrol Status 1 | . 1 . . . . . Derelict Proto ID Bank 1 | . . . 1 . . . Fabricator Hacks . | . . . . . . . Repair Station Hacks . | . . . . . . . Recycling Unit Hacks . | . . . . . . . Scanalyzer . | . . . . . . . Garrison Access Hacks 1 | . . . . . 1 . Unlock Access 1 | . . . . . 1 . Unauthorized Hacks 6 | . 5 . . . 1 . Terminals 6 | . 5 . . . 1 . Botnet 6 | . 5 . . . 1 . Fabricators . | . . . . . . . Repair Stations . | . . . . . . . Recycling Units . | . . . . . . . Scanalyzers . | . . . . . . . Garrison Access . | . . . . . . . Data Cores Recovered . | . . . . . . . Used . | . . . . . . . Hacking Detections 9 | . 6 1 . . 2 . Full Trace Events . | . . . . . . . Feedback Events . | . . . . . . . Feedback Blocked . | . . . . . . . Robot Schematics Acquired . | . . . . . . . Robots Built . | . . . . . . . Authchips . | . . . . . . . Time . | . . . . . . . Total Robot Build Rating . | . . . . . . . Part Schematics Acquired . | . . . . . . . Parts Built . | . . . . . . . Authchips . | . . . . . . . Time . | . . . . . . . Total Part Build Rating . | . . . . . . . Parts Repaired . | . . . . . . . Time . | . . . . . . . Parts Recycled . | . . . . . . . Recycled Matter . | . . . . . . . Retrieved Matter . | . . . . . . . Retrieved Components . | . . . . . . . Parts Scanalyzed . | . . . . . . . Part Schematics Acquired . | . . . . . . . Parts Damaged . | . . . . . . . Bothacking | -11 -10 -10 -10 -9 -8 -8 ------------ Run | Yrd Mat Min Exi Min Mat Gar Used RIF Installer 1 | . . . . . . 1 Robots Hacked . | . . . . . . . Non-combat . | . . . . . . . Combat . | . . . . . . . Robot Hacks Applied . | . . . . . . . Relay Couplers Released . | . . . . . . . Fabnet Peak Effective % . | . . . . . . . Robots Rewired . | . . . . . . . Allies Hacked . | . . . . . . . Hacks Repelled . | . . . . . . . Allies | -11 -10 -10 -10 -9 -8 -8 -------- Run | Yrd Mat Min Exi Min Mat Gar Total Allies 3 | . . 3 . . . . Largest Group 3 | . . 3 . . . . Highest-Rated Group 40 | . . 40 . . . . Highest-Rated Ally 16 | . . 16 . . . . Total Orders . | . . . . . . . Ally Attacks . | . . . . . . . Total Damage . | . . . . . . . Kills . | . . . . . . . Allies Corrupted . | . . . . . . . Allies Melted . | . . . . . . . Intel | -11 -10 -10 -10 -9 -8 -8 ------- Run | Yrd Mat Min Exi Min Mat Gar Robot Analysis Total . | . . . . . . . Derelict Logs Recovered 1 | . . 1 . . . . Drone Launches . | . . . . . . . Drone Recoveries . | . . . . . . . Exploration | -11 -10 -10 -10 -9 -8 -8 ------------- Run | Yrd Mat Min Exi Min Mat Gar Turns Passed 2537 | 57 582 740 291 120 363 384 Spaces Moved 1904 | 39 423 653 353 116 155 165 Core 329 | 10 . 80 . . 74 165 Treads . | . . . . . . . Legs 689 | 29 423 237 . . . . Wheels 886 | . . 336 353 116 81 . Hover . | . . . . . . . Flight . | . . . . . . . Fastest Speed 50 | 50 120 80 80 80 50 50 Average Speed 107 | 102 120 102 80 80 66 212 Slowest Speed 250 | 120 120 150 80 80 95 250 Overloaded Moves . | . . . . . . . Propulsion Burnouts . | . . . . . . . Robots Hopped . | . . . . . . . Cave-ins Triggered . | . . . . . . . Exploration Rate (%) 44 | 5 65 94 64 40 15 26 Regions Visited 6 Branch Regions 3 Pre-discovered Areas 1 | . . 1 . . . . Known Exits Taken 5 | . 1 1 1 1 1 . Unknown Exits Taken 1 | 1 . . . . . . Scrap Searched 3 | . . 2 . 1 . . Spaces Dug . | . . . . . . . Terrain Destroyed . | . . . . . . . Melee . | . . . . . . . Projectile . | . . . . . . . AOE . | . . . . . . . Terrain Rammed . | . . . . . . . Walls Destroyed . | . . . . . . . Machines Disabled . | . . . . . . . Actions | -11 -10 -10 -10 -9 -8 -8 --------- Run | Yrd Mat Min Exi Min Mat Gar Total 2287 | 55 461 693 362 124 392 200 Wait 239 | 2 12 11 4 . 195 15 Move 1898 | 38 422 652 352 115 154 165 Hop . | . . . . . . . Pick Up 28 | 8 4 7 3 . 6 . Fast Attach . | . . . . . . . Attach 20 | 6 2 3 . . 6 3 Detach 5 | . . . . . 2 3 Swap 7 | 1 2 3 . . 1 . Drop 12 | . . 3 3 . 5 1 Fire 55 | . 19 14 . 9 13 . Melee . | . . . . . . . Ram 10 | . . . . . 10 . Kick . | . . . . . . . Crush . | . . . . . . . Escape Stasis 13 | . . . . . . 13 Rewire . | . . . . . . . Trap . | . . . . . . . Miscellaneous . | . . . . . . . Route ------- -11/Scrapyard -10/Materials (discovered 3 exits: *Mat / *Min x2) -10/Mines (discovered 3 exits: *Mat x2 / *Exi) -10/Exiles (discovered 2 exits: *Min x2) -9/Mines -8/Materials -8/Garrison History --------- Turn | Location | Event 7 | -11/Scrapyard | Discovered new exit (range 15) 58 | -11/Scrapyard | Entered Materials 224 | -10/Materials | Discovered new exit (range 14) 314 | -10/Materials | Build established: Mutant 357 | -10/Materials | Discovered new exit (range 5) 389 | -10/Materials | Identified exit to Materials 562 | -10/Materials | Identified exit to Mines 640 | -10/Materials | Entered Mines 662 | -10/Mines | Met a Derelict bent on vengeance 716 | -10/Mines | Discovered exit to Materials (range 6) 903 | -10/Mines | Found a damaged Exp. Sensor Array with a note attached 906 | -10/Mines | Found Prototype Device 914 | -10/Mines | Identified Exp. Sensor Array 990 | -10/Mines | Lost 3 parts (1p2n) 1000 | -10/Mines | Learned location of Zion (-6) 1161 | -10/Mines | Assisted by bots powering up and referring to "LRC-V3" 1208 | -10/Mines | Discovered exit to Materials (range 5) 1210 | -10/Mines | Joined a pair of Derelicts in attacking an 0b10 outpost 1376 | -10/Mines | Deemed a non-threat by the Exiles lab entrance 1377 | -10/Mines | Discovered new exit (range 5) 1379 | -10/Mines | Identified exit to Exiles 1380 | -10/Mines | Entered Exiles 1393 | -10/Exiles | Discovered new exit (range 15) 1404 | -10/Exiles | Met 8R-AWN 1417 | -10/Exiles | Met EX-HEX 1443 | -10/Exiles | Met EX-BIN 1454 | -10/Exiles | Aligned with FarCom system 1455 | -10/Exiles | Given EX-Vault access code 1475 | -10/Exiles | Opened EX-Vault 1482 | -10/Exiles | Found Gui. Plasma Cannon 1485 | -10/Exiles | Found Cloak of Protection 1487 | -10/Exiles | Found Superbattery 1507 | -10/Exiles | Warned to stay clear of 0b10 Research branches 1519 | -10/Exiles | Build established: Scavenger-Mutant 1531 | -10/Exiles | Met EX-DEC 1561 | -10/Exiles | Discovered new exit (range 14) 1574 | -10/Exiles | Identified exit to Mines 1671 | -10/Exiles | Stole three prototypes: Superbattery, Cloak of Protection, Gui. Plasma Cannon 1671 | -10/Exiles | Entered Mines 1674 | -9/Mines | Core integrity fell below 50% 1786 | -9/Mines | Discovered new exit (range 7) 1790 | -9/Mines | Identified exit to Materials 1791 | -9/Mines | Entered Materials 1791 | -8/Materials | Evolved 4 slots: Power x1, Propulsion x1, Utility x2 2135 | -8/Materials | Lost 6 parts (1p2n3w) 2153 | -8/Materials | Identified exit to Garrison 2154 | -8/Materials | Entered Garrison 2190 | -8/Garrison | Installed Relay Interface Framework 2368 | -8/Garrison | Build established: Mutant 2488 | -8/Garrison | Triggered checkpoint 2515 | -8/Garrison | Core integrity fell below 50% 2531 | -8/Garrison | Core integrity fell below 20% 2538 | -8/Garrison | Destroyed by S-10 Pest with Light Assault Rifle Last Messages --------------- Field strength at 94. Field strength at 88. Field strength at 82. Field strength at 74. Field strength at 66. Field strength at 56. S-10 Pest destroyed. Field strength at 45. Field strength at 31. Field strength at 21. Field strength at 11. Stasis field depleted. Triggered Stasis Trap. A bubble of rippling energy engulfs the area. Field strength at 94. S-10 Pest destroyed. Field strength at 85. Field strength at 72. Field strength at 62. Field strength at 50. Map ----- +----------------------------------------------------+ | ?????????????????????????????????????????????????? | | ?????????????????????????????????????????????????? | | ?????????????????????????????????????????????????? | | ?????????????????????????????????????????????????? | | ?????????????????????????????????????????????????? | | ?????????????????????????????????????????????????? | | ?????????????????????????????????????????????????? | | ?????????????????????????????????????????????????? | | ?????????????????????????????????????????????????? | | ?????????????????????????????????????????????????? | | ?????????????????????????????????????????????????? | | ?????????????????????????????????????????????????? | | ?????????????????????????????????????????????????? | | ?????????????????????????????????????????????????? | | ???????????????????????????????????????s?????????? | | ?????????????????????????????????????????????????? | | ???????????????????????????????g?????????????????? | | ?????????????????????????????????????????????????? | | ???????????????????????????????g?????????????????? | | ??????????????????????????????#??????????????????? | | ????????????????????????????? #??????????????????? | | ???????????????????????????? #??????????????????? | | ?????????????????########### ######### ?????????? | | ?????????????????# = ????????? | | ?????????????????# sssss ????????? | | ?????????????????# s%[@ ????????? | | ?????????????????# #+####T######???????????????? | | ?????????????????# #???????????????????????????? | | ?????????????????# #???????????????????????????? | | ?????????????????# #???????????????????????????? | | ?????????????????# #???????????????????????????? | | ???????????####??# #Y??????????????????????????? | | ???????????# ?# #???????????????????????????? | | ??????###### ## #???????????????????????????? | | ???#### #???????????????????????????? | | ???? Y #Y??????????????????????????? | | ???? #???????????????????????????? | | ?????## ## ## #???????????????????????????? | | ??????# ## ## ###?????????????????????????? | | ????# #?????????????????????????? | | ????# Y #?????????????????????????? | | ????# #?????????????????????????? | | ????# #?????????????????????????? | | ????### ## ## ###?????????????????????????? | | ??????# ## ## ###########?????????????????? | | #?????????????????? | | #?????????????????? | | ?###### ######## #?????????????????? | | ??????## ## ""######??????# #?????????????????? | | ???????# ?# ??????????????# #?????????????????? | +----------------------------------------------------+ Best States ------------- Heat Dissipation 31 Energy Generation 10 Energy Capacity 1625 Matter Stores 300 Matter Capacity 300 Sight Range 16 Robot Scan Range 20 Terrain Scan Density 10 Cloak Strength 5 Evasion (%) 55 Targeting Accuracy 10 Item Schematics ----------------- None Robot Schematics ------------------ None Fabricated ------------ Nothing Alien Tech Used ----------------- None Achievements -------------- None Challenges ------------ None Game ------ Seed DefenseSpacefoldFalx Manual? 0 Play Time 00:24:07 Cumulative 13.4 hours Start 2024.04.12 @ 21:16:07 End 2024.04.12 @ 21:39:11 Sessions 1 Manual Loads 0 Difficulty Rogue Special Mode None Game No. 34 Rogue 34 Adventurer 0 Explorer 0 Win Type - Total 0 Types 0/0/0/0/0/0/0/0/0 Lore% 19 Gallery% 24 Achievement% 21 Wizard Run 0 Options --------- Layout 2 ASCII 0 Keyboard 0 Movement Numpad Keybinds 0 Fullscreen 1 Font 24/Smallcaps Map View 50x44 Zoom Use 0% Tactical HUD 0 Map Filters NONE Filters NONE Steam 1 RUN: 9fef6f69-3127-4975-8aea-16e6a49976be